[Event "Titled Tuesday Blitz August 15 Early 2023"]
[White "Mikhaylova, Irina"]
[Black "Dehtiarov, Roman"]
[WhiteFideId "4109040"]
[BlackFideId "14186640"]
[WhiteElo "2294"]
[BlackElo "2677"]
[Result "0-1"]
[Round "2"]
[TimeControl "180+1"]
[Date "2023.08.15"]
[WhiteClock "0:00:06"]
[BlackClock "0:00:52"]
[Board "98"]

1. d4 {[%clk 0:03:00]}  Nf6 {[%clk 0:02:52]} 2. Nf3 {[%clk 0:03:00]}  b6 {[%clk 0:02:50]} 3. c4 {[%clk 0:03:00]}  e6 {[%clk 0:02:50]} 4. a3 {[%clk 0:03:00]}  Ba6 {[%clk 0:02:50]} 5. e3 {[%clk 0:03:00]}  c5 {[%clk 0:02:49]} 6. Be2 {[%clk 0:02:50]}  Bb7 {[%clk 0:02:47]} 7. Nc3 {[%clk 0:02:48]}  cxd4 {[%clk 0:02:47]} 8. Qxd4 {[%clk 0:02:47]}  Nc6 {[%clk 0:02:45]} 9. Qd1 {[%clk 0:02:32]}  Be7 {[%clk 0:02:44]} 10. O-O {[%clk 0:02:32]}  O-O {[%clk 0:02:44]} 11. b3 {[%clk 0:02:32]}  Rc8 {[%clk 0:02:43]} 12. Bb2 {[%clk 0:02:32]}  d6 {[%clk 0:02:40]} 13. Rc1 {[%clk 0:02:29]}  a6 {[%clk 0:02:36]} 14. Nd4 {[%clk 0:02:26]}  Qc7 {[%clk 0:02:29]} 15. Nxc6 {[%clk 0:02:25]}  Bxc6 {[%clk 0:02:28]} 16. Bf3 {[%clk 0:02:26]}  Rfd8 {[%clk 0:02:24]} 17. Bxc6 {[%clk 0:02:25]}  Qxc6 {[%clk 0:02:25]} 18. Qe2 {[%clk 0:02:26]}  Nd7 {[%clk 0:02:22]} 19. Rfd1 {[%clk 0:02:11]}  Nc5 {[%clk 0:02:16]} 20. Qc2 {[%clk 0:02:11]}  Bf6 {[%clk 0:02:05]} 21. b4 {[%clk 0:02:02]}  Nb7 {[%clk 0:02:03]} 22. Na4 {[%clk 0:01:45]}  Bxb2 {[%clk 0:01:51]} 23. Nxb2 {[%clk 0:01:45]}  d5 {[%clk 0:01:43]} 24. Qa4 {[%clk 0:00:58]}  b5 {[%clk 0:01:30]} 25. cxb5 {[%clk 0:00:49]}  Qxc1 {[%clk 0:01:30]} 26. Rxc1 {[%clk 0:00:49]}  Rxc1+ {[%clk 0:01:31]} 27. Nd1 {[%clk 0:00:50]}  axb5 {[%clk 0:01:30]} 28. Qb3 {[%clk 0:00:49]}  d4 {[%clk 0:01:26]} 29. g4 {[%clk 0:00:34]}  dxe3 {[%clk 0:01:24]} 30. Qxe3 {[%clk 0:00:35]}  Rcxd1+ {[%clk 0:01:24]} 31. Kg2 {[%clk 0:00:35]}  Nd6 {[%clk 0:01:24]} 32. Qe2 {[%clk 0:00:33]}  Rd5 {[%clk 0:01:21]} 33. h3 {[%clk 0:00:33]}  h6 {[%clk 0:01:20]} 34. Qc2 {[%clk 0:00:32]}  Nc4 {[%clk 0:01:15]} 35. a4 {[%clk 0:00:32]}  Rd2 {[%clk 0:01:15]} 36. Qe4 {[%clk 0:00:29]}  R2d4 {[%clk 0:01:06]} 37. Qc6 {[%clk 0:00:28]}  bxa4 {[%clk 0:01:05]} 38. Qxa4 {[%clk 0:00:27]}  Nd6 {[%clk 0:00:59]} 39. Qa5 {[%clk 0:00:21]}  Rb8 {[%clk 0:00:56]} 40. Qc5 {[%clk 0:00:16]}  Rbxb4 {[%clk 0:00:56]} 41. Qc7 {[%clk 0:00:15]}  Kh7 {[%clk 0:00:52]} 42. Qc2+ {[%clk 0:00:14]}  g6 {[%clk 0:00:52]} 43. Qc7 {[%clk 0:00:14]}  Kg7 {[%clk 0:00:52]} 44. Qc3 {[%clk 0:00:13]}  Rc4 {[%clk 0:00:52]} 45. Qe3 {[%clk 0:00:13]}  Ne4 {[%clk 0:00:52]} 46. Qa3 {[%clk 0:00:10]}  Nf6 {[%clk 0:00:52]} 47. Qf3 {[%clk 0:00:09]}  Nd5 {[%clk 0:00:51]} 48. Qa3 {[%clk 0:00:08]}  Nf4+ {[%clk 0:00:51]} 49. Kg3 {[%clk 0:00:08]}  Rd3+ {[%clk 0:00:51]} 50. Qxd3 {[%clk 0:00:06]}  Nxd3 {[%clk 0:00:52]} 0-1


[Site "https://www.chess.com"]

[Event "Titled Tuesday Blitz August 15 Early 2023"]
[White "crazy_m_attack"]
[Black "Hoang, Thi Bao Tram"]
[BlackFideId "12401102"]
[WhiteElo "2278"]
[BlackElo "2666"]
[Result "1/2-1/2"]
[Round "2"]
[TimeControl "180+1"]
[Date "2023.08.15"]
[WhiteClock "0:00:07"]
[BlackClock "0:00:09"]
[Board "100"]

1. e4 {[%clk 0:03:00]}  c6 {[%clk 0:02:57]} 2. d4 {[%clk 0:03:00]}  d5 {[%clk 0:02:53]} 3. Nc3 {[%clk 0:03:00]}  dxe4 {[%clk 0:02:50]} 4. Nxe4 {[%clk 0:03:00]}  Bf5 {[%clk 0:02:51]} 5. Ng3 {[%clk 0:03:00]}  Bg6 {[%clk 0:02:51]} 6. h4 {[%clk 0:03:00]}  h6 {[%clk 0:02:52]} 7. h5 {[%clk 0:02:58]}  Bh7 {[%clk 0:02:51]} 8. Bd3 {[%clk 0:02:58]}  Bxd3 {[%clk 0:02:50]} 9. Qxd3 {[%clk 0:02:55]}  e6 {[%clk 0:02:51]} 10. N1e2 {[%clk 0:02:52]}  Nf6 {[%clk 0:02:49]} 11. Bf4 {[%clk 0:02:48]}  Qa5+ {[%clk 0:02:45]} 12. Bd2 {[%clk 0:02:41]}  Qa6 {[%clk 0:02:45]} 13. Qb3 {[%clk 0:02:26]}  Nbd7 {[%clk 0:02:42]} 14. O-O-O {[%clk 0:02:11]}  Nb6 {[%clk 0:02:37]} 15. Kb1 {[%clk 0:02:09]}  Qb5 {[%clk 0:02:33]} 16. Qxb5 {[%clk 0:02:05]}  cxb5 {[%clk 0:02:33]} 17. a3 {[%clk 0:02:00]}  Bd6 {[%clk 0:02:29]} 18. Rh4 {[%clk 0:01:57]}  Rc8 {[%clk 0:02:08]} 19. Ne4 {[%clk 0:01:53]}  Be7 {[%clk 0:02:06]} 20. Nxf6+ {[%clk 0:01:49]}  Bxf6 {[%clk 0:02:06]} 21. Rg4 {[%clk 0:01:49]}  Nc4 {[%clk 0:02:05]} 22. Bc1 {[%clk 0:01:41]}  Ke7 {[%clk 0:01:59]} 23. b3 {[%clk 0:01:40]}  Nd6 {[%clk 0:01:58]} 24. Bb2 {[%clk 0:01:40]}  Rhd8 {[%clk 0:01:56]} 25. d5 {[%clk 0:01:14]}  Bxb2 {[%clk 0:01:52]} 26. Kxb2 {[%clk 0:01:15]}  Nf5 {[%clk 0:01:52]} 27. Nc3 {[%clk 0:01:10]}  a6 {[%clk 0:01:34]} 28. Re1 {[%clk 0:01:01]}  Rd6 {[%clk 0:01:27]} 29. Rf4 {[%clk 0:00:54]}  Kf8 {[%clk 0:00:13]} 30. dxe6 {[%clk 0:00:40]}  fxe6 {[%clk 0:00:12]} 31. g4 {[%clk 0:00:40]}  Rdc6 {[%clk 0:00:12]} 32. Rf3 {[%clk 0:00:33]}  Rxc3 {[%clk 0:00:11]} 33. Rxc3 {[%clk 0:00:32]}  Rxc3 {[%clk 0:00:11]} 34. Kxc3 {[%clk 0:00:33]}  Ne7 {[%clk 0:00:12]} 35. Rxe6 {[%clk 0:00:32]}  Nc6 {[%clk 0:00:12]} 36. a4 {[%clk 0:00:24]}  bxa4 {[%clk 0:00:10]} 37. bxa4 {[%clk 0:00:24]}  Kf7 {[%clk 0:00:11]} 38. Re3 {[%clk 0:00:23]}  Kf6 {[%clk 0:00:11]} 39. f4 {[%clk 0:00:22]}  Ne7 {[%clk 0:00:11]} 40. Kd4 {[%clk 0:00:18]}  Nc6+ {[%clk 0:00:11]} 41. Kc5 {[%clk 0:00:18]}  g5 {[%clk 0:00:08]} 42. f5 {[%clk 0:00:17]}  Ne5 {[%clk 0:00:08]} 43. Re4 {[%clk 0:00:17]}  Nxg4 {[%clk 0:00:06]} 44. Kd6 {[%clk 0:00:04]}  Kxf5 {[%clk 0:00:07]} 45. Re6 {[%clk 0:00:04]}  Ne3 {[%clk 0:00:06]} 46. Rxh6 {[%clk 0:00:04]}  Nc4+ {[%clk 0:00:07]} 47. Kc7 {[%clk 0:00:04]}  b5 {[%clk 0:00:07]} 48. axb5 {[%clk 0:00:03]}  axb5 {[%clk 0:00:08]} 49. Kc6 {[%clk 0:00:04]}  Ne3 {[%clk 0:00:07]} 50. c3 {[%clk 0:00:04]}  Nd1 {[%clk 0:00:07]} 51. Kxb5 {[%clk 0:00:04]}  Nxc3+ {[%clk 0:00:07]} 52. Kc4 {[%clk 0:00:05]}  Ne4 {[%clk 0:00:08]} 53. Rh8 {[%clk 0:00:04]}  Nf6 {[%clk 0:00:08]} 54. Rf8 {[%clk 0:00:03]}  g4 {[%clk 0:00:08]} 55. h6 {[%clk 0:00:04]}  Kg6 {[%clk 0:00:08]} 56. Kd3 {[%clk 0:00:02]}  Nh7 {[%clk 0:00:08]} 57. Rg8+ {[%clk 0:00:02]}  Kxh6 {[%clk 0:00:08]} 58. Rxg4 {[%clk 0:00:03]}  Nf6 {[%clk 0:00:09]} 59. Rg1 {[%clk 0:00:04]}  Nh5 {[%clk 0:00:08]} 60. Rh1 {[%clk 0:00:04]}  Kg5 {[%clk 0:00:09]} 61. Ke3 {[%clk 0:00:04]}  Nf6 {[%clk 0:00:08]} 62. Rg1+ {[%clk 0:00:05]}  Kf5 {[%clk 0:00:08]} 63. Kd4 {[%clk 0:00:05]}  Ng4 {[%clk 0:00:08]} 64. Rf1+ {[%clk 0:00:06]}  Kg5 {[%clk 0:00:08]} 65. Ke4 {[%clk 0:00:07]}  Nf6+ {[%clk 0:00:08]} 66. Ke5 {[%clk 0:00:07]}  Ng4+ {[%clk 0:00:08]} 67. Ke4 {[%clk 0:00:08]}  Nf6+ {[%clk 0:00:09]} 68. Kf3 {[%clk 0:00:08]}  Kf5 {[%clk 0:00:09]} 69. Ke3+ {[%clk 0:00:09]}  Ke5 {[%clk 0:00:09]} 70. Rxf6 {[%clk 0:00:07]}  Kxf6 {[%clk 0:00:09]} 1/2-1/2


[Site "https://www.chess.com"]

[Event "Titled Tuesday Blitz August 15 Early 2023"]
[White "Parkhov, Yair"]
[Black "slimshady"]
[WhiteFideId "2813408"]
[WhiteElo "2664"]
[BlackElo "2273"]
[Result "1-0"]
[Round "2"]
[TimeControl "180+1"]
[Date "2023.08.15"]
[WhiteClock "0:00:40"]
[BlackClock "0:00:24"]
[Board "101"]

1. d4 {[%clk 0:02:58]}  Nf6 {[%clk 0:02:58]} 2. c4 {[%clk 0:02:59]}  e6 {[%clk 0:02:58]} 3. Nf3 {[%clk 0:02:59]}  d5 {[%clk 0:02:59]} 4. g3 {[%clk 0:03:00]}  Bb4+ {[%clk 0:02:58]} 5. Nbd2 {[%clk 0:02:56]}  O-O {[%clk 0:02:57]} 6. Bg2 {[%clk 0:02:56]}  c6 {[%clk 0:02:51]} 7. O-O {[%clk 0:02:55]}  Nbd7 {[%clk 0:02:49]} 8. Qc2 {[%clk 0:02:52]}  b6 {[%clk 0:02:47]} 9. e4 {[%clk 0:02:42]}  dxe4 {[%clk 0:02:27]} 10. Nxe4 {[%clk 0:02:42]}  Bb7 {[%clk 0:02:27]} 11. Bf4 {[%clk 0:02:15]}  Nxe4 {[%clk 0:02:22]} 12. Qxe4 {[%clk 0:02:15]}  Nf6 {[%clk 0:02:22]} 13. Qc2 {[%clk 0:02:15]}  Bd6 {[%clk 0:02:06]} 14. Bxd6 {[%clk 0:02:11]}  Qxd6 {[%clk 0:02:06]} 15. c5 {[%clk 0:02:12]}  Qc7 {[%clk 0:02:03]} 16. Rfd1 {[%clk 0:02:07]}  Rfd8 {[%clk 0:02:02]} 17. Rac1 {[%clk 0:02:07]}  Nd5 {[%clk 0:02:02]} 18. Ng5 {[%clk 0:01:58]}  g6 {[%clk 0:01:58]} 19. h4 {[%clk 0:01:58]}  Qe7 {[%clk 0:01:55]} 20. Ne4 {[%clk 0:01:51]}  bxc5 {[%clk 0:01:45]} 21. dxc5 {[%clk 0:01:48]}  Rab8 {[%clk 0:01:44]} 22. h5 {[%clk 0:01:40]}  Ba6 {[%clk 0:01:42]} 23. h6 {[%clk 0:01:37]}  Nb4 {[%clk 0:00:54]} 24. Qc3 {[%clk 0:01:32]}  f5 {[%clk 0:00:50]} 25. Nf6+ {[%clk 0:01:22]}  Kf8 {[%clk 0:00:49]} 26. Nd7+ {[%clk 0:01:06]}  Kg8 {[%clk 0:00:39]} 27. Nf6+ {[%clk 0:00:54]}  Kf8 {[%clk 0:00:38]} 28. Nxh7+ {[%clk 0:00:50]}  Qxh7 {[%clk 0:00:36]} 29. Qf6+ {[%clk 0:00:50]}  Ke8 {[%clk 0:00:33]} 30. Qxe6+ {[%clk 0:00:49]}  Kf8 {[%clk 0:00:30]} 31. Qf6+ {[%clk 0:00:49]}  Qf7 {[%clk 0:00:26]} 32. Rxd8+ {[%clk 0:00:41]}  Rxd8 {[%clk 0:00:25]} 33. Qxd8+ {[%clk 0:00:40]}  Qe8 {[%clk 0:00:24]} 1-0


[Site "https://www.chess.com"]

[Event "Titled Tuesday Blitz August 15 Early 2023"]
[White "ChainedDowntohell"]
[Black "Sarkar, Justin"]
[BlackFideId "2010011"]
[WhiteElo "2652"]
[BlackElo "2243"]
[Result "1-0"]
[Round "2"]
[TimeControl "180+1"]
[Date "2023.08.15"]
[WhiteClock "0:00:14"]
[BlackClock "0:00:00"]
[Board "102"]

1. d4 {[%clk 0:02:59]}  Nf6 {[%clk 0:02:55]} 2. Nf3 {[%clk 0:02:58]}  e6 {[%clk 0:02:50]} 3. Bf4 {[%clk 0:02:58]}  b6 {[%clk 0:02:46]} 4. e3 {[%clk 0:02:56]}  Bb7 {[%clk 0:02:45]} 5. h3 {[%clk 0:02:56]}  d5 {[%clk 0:02:29]} 6. Bb5+ {[%clk 0:02:41]}  c6 {[%clk 0:02:24]} 7. Bd3 {[%clk 0:02:40]}  Bd6 {[%clk 0:02:20]} 8. Bg5 {[%clk 0:02:36]}  h6 {[%clk 0:02:18]} 9. Bxf6 {[%clk 0:02:26]}  Qxf6 {[%clk 0:02:18]} 10. Nbd2 {[%clk 0:02:25]}  c5 {[%clk 0:02:03]} 11. c3 {[%clk 0:02:14]}  O-O {[%clk 0:01:58]} 12. Qe2 {[%clk 0:02:02]}  Nd7 {[%clk 0:01:48]} 13. e4 {[%clk 0:01:57]}  cxd4 {[%clk 0:01:45]} 14. Nxd4 {[%clk 0:01:38]}  Nc5 {[%clk 0:01:39]} 15. N4f3 {[%clk 0:01:16]}  Nxd3+ {[%clk 0:01:21]} 16. Qxd3 {[%clk 0:01:17]}  Rad8 {[%clk 0:01:20]} 17. Qe2 {[%clk 0:00:44]}  dxe4 {[%clk 0:01:03]} 18. Nxe4 {[%clk 0:00:44]}  Qg6 {[%clk 0:01:02]} 19. Nxd6 {[%clk 0:00:35]}  Qxg2 {[%clk 0:00:55]} 20. Rg1 {[%clk 0:00:25]}  Qxf3 {[%clk 0:00:31]} 21. Qe5 {[%clk 0:00:20]}  g6 {[%clk 0:00:16]} 22. Rd1 {[%clk 0:00:15]}  Bd5 {[%clk 0:00:10]} 23. Rg3 {[%clk 0:00:14]}  Qh1+ {[%clk 0:00:03]} 24. Ke2 {[%clk 0:00:14]}  Qh2 {[%clk 0:00:00]} 25. Rxg6+ {[%clk 0:00:14]} 1-0


[Site "https://www.chess.com"]

[Event "Titled Tuesday Blitz August 15 Early 2023"]
[White "Nefedov, Sergey"]
[Black "Sava, Christiansen-Danut-Eugen"]
[WhiteFideId "24113417"]
[BlackFideId "1210114"]
[WhiteElo "2640"]
[BlackElo "2133"]
[Result "1-0"]
[Round "2"]
[TimeControl "180+1"]
[Date "2023.08.15"]
[WhiteClock "0:01:00"]
[BlackClock "0:00:24"]
[Board "105"]

1. d4 {[%clk 0:03:00]}  Nf6 {[%clk 0:02:57]} 2. Nf3 {[%clk 0:02:59]}  e6 {[%clk 0:02:57]} 3. c4 {[%clk 0:03:00]}  Bb4+ {[%clk 0:02:57]} 4. Bd2 {[%clk 0:02:59]}  Qe7 {[%clk 0:02:56]} 5. Qc2 {[%clk 0:02:59]}  Nc6 {[%clk 0:02:55]} 6. e3 {[%clk 0:02:59]}  Bxd2+ {[%clk 0:02:56]} 7. Nbxd2 {[%clk 0:02:58]}  d6 {[%clk 0:02:56]} 8. Rc1 {[%clk 0:02:52]}  e5 {[%clk 0:02:55]} 9. Be2 {[%clk 0:02:43]}  O-O {[%clk 0:02:55]} 10. d5 {[%clk 0:02:29]}  Nb8 {[%clk 0:02:52]} 11. e4 {[%clk 0:02:29]}  a5 {[%clk 0:02:51]} 12. c5 {[%clk 0:02:27]}  Na6 {[%clk 0:02:51]} 13. cxd6 {[%clk 0:02:25]}  cxd6 {[%clk 0:02:51]} 14. Bxa6 {[%clk 0:02:23]}  bxa6 {[%clk 0:02:51]} 15. O-O {[%clk 0:02:22]}  Bd7 {[%clk 0:02:51]} 16. Qc3 {[%clk 0:02:08]}  a4 {[%clk 0:02:49]} 17. Qa5 {[%clk 0:02:03]}  Rfc8 {[%clk 0:02:43]} 18. h3 {[%clk 0:02:01]}  Bb5 {[%clk 0:02:41]} 19. Rfe1 {[%clk 0:02:00]}  Qb7 {[%clk 0:02:36]} 20. Nh4 {[%clk 0:01:50]}  g6 {[%clk 0:02:34]} 21. Nhf3 {[%clk 0:01:49]}  Rxc1 {[%clk 0:02:32]} 22. Rxc1 {[%clk 0:01:49]}  Rc8 {[%clk 0:02:32]} 23. Rc3 {[%clk 0:01:42]}  Nd7 {[%clk 0:02:24]} 24. Qb4 {[%clk 0:01:36]}  Rxc3 {[%clk 0:02:14]} 25. bxc3 {[%clk 0:01:34]}  Qc7 {[%clk 0:02:08]} 26. c4 {[%clk 0:01:33]}  Qc5 {[%clk 0:01:49]} 27. Qxc5 {[%clk 0:01:31]}  Nxc5 {[%clk 0:01:50]} 28. cxb5 {[%clk 0:01:31]}  axb5 {[%clk 0:01:51]} 29. a3 {[%clk 0:01:25]}  f5 {[%clk 0:01:38]} 30. Ne1 {[%clk 0:01:25]}  fxe4 {[%clk 0:01:29]} 31. Nc2 {[%clk 0:01:25]}  Kf7 {[%clk 0:01:26]} 32. Kf1 {[%clk 0:01:26]}  Kf6 {[%clk 0:01:17]} 33. Ke2 {[%clk 0:01:26]}  h5 {[%clk 0:01:14]} 34. Ke3 {[%clk 0:01:22]}  Kf5 {[%clk 0:01:13]} 35. Nb1 {[%clk 0:01:21]}  Nd3 {[%clk 0:00:55]} 36. Nc3 {[%clk 0:01:17]}  Nf4 {[%clk 0:00:55]} 37. Ne1 {[%clk 0:01:12]}  h4 {[%clk 0:00:42]} 38. g3 {[%clk 0:01:07]}  hxg3 {[%clk 0:00:29]} 39. fxg3 {[%clk 0:01:08]}  Nxh3 {[%clk 0:00:30]} 40. Nxb5 {[%clk 0:01:08]}  Kg4 {[%clk 0:00:27]} 41. Nxd6 {[%clk 0:01:07]}  Ng5 {[%clk 0:00:25]} 42. Nxe4 {[%clk 0:01:07]}  Nf7 {[%clk 0:00:26]} 43. Nd3 {[%clk 0:01:01]}  g5 {[%clk 0:00:23]} 44. Ndf2+ {[%clk 0:01:00]}  Kf5 {[%clk 0:00:23]} 45. g4+ {[%clk 0:01:01]}  Kg6 {[%clk 0:00:23]} 46. Nd3 {[%clk 0:01:01]}  Nh6 {[%clk 0:00:23]} 47. Nxe5+ {[%clk 0:01:01]}  Kg7 {[%clk 0:00:22]} 48. d6 {[%clk 0:01:02]}  Kf8 {[%clk 0:00:22]} 49. Nxg5 {[%clk 0:01:00]}  Ng8 {[%clk 0:00:22]} 50. Ne6+ {[%clk 0:00:59]}  Ke8 {[%clk 0:00:22]} 51. d7+ {[%clk 0:01:00]}  Ke7 {[%clk 0:00:21]} 52. d8=Q+ {[%clk 0:01:01]}  Kxe6 {[%clk 0:00:21]} 53. Qxg8+ {[%clk 0:01:01]}  Kxe5 {[%clk 0:00:22]} 54. g5 {[%clk 0:01:00]}  Kf5 {[%clk 0:00:22]} 55. g6 {[%clk 0:01:00]}  Kf6 {[%clk 0:00:23]} 56. g7 {[%clk 0:01:00]}  Kg6 {[%clk 0:00:24]} 57. Qf8 {[%clk 0:00:59]}  Kh7 {[%clk 0:00:24]} 58. g8=Q# {[%clk 0:01:00]} 1-0


[Site "https://www.chess.com"]

[Event "Titled Tuesday Blitz August 15 Early 2023"]
[White "Pax-Pramana"]
[Black "Souza Neves, Andrey M."]
[BlackFideId "2101815"]
[WhiteElo "2637"]
[BlackElo "2112"]
[Result "1-0"]
[Round "2"]
[TimeControl "180+1"]
[Date "2023.08.15"]
[WhiteClock "0:00:39"]
[BlackClock "0:00:10"]
[Board "106"]

1. e4 {[%clk 0:03:00]}  c6 {[%clk 0:02:59]} 2. d4 {[%clk 0:03:00]}  d5 {[%clk 0:02:58]} 3. Nd2 {[%clk 0:03:01]}  dxe4 {[%clk 0:02:58]} 4. Nxe4 {[%clk 0:03:01]}  Nf6 {[%clk 0:02:58]} 5. Ng3 {[%clk 0:03:02]}  h5 {[%clk 0:02:57]} 6. h4 {[%clk 0:03:02]}  c5 {[%clk 0:02:57]} 7. Nf3 {[%clk 0:02:57]}  Nc6 {[%clk 0:02:54]} 8. Be3 {[%clk 0:02:53]}  Bg4 {[%clk 0:02:45]} 9. dxc5 {[%clk 0:02:53]}  Qxd1+ {[%clk 0:02:32]} 10. Rxd1 {[%clk 0:02:54]}  Bxf3 {[%clk 0:02:28]} 11. gxf3 {[%clk 0:02:55]}  e6 {[%clk 0:02:24]} 12. Bc4 {[%clk 0:02:36]}  a6 {[%clk 0:02:15]} 13. Ne4 {[%clk 0:02:35]}  Ne5 {[%clk 0:02:10]} 14. Be2 {[%clk 0:01:53]}  Nd5 {[%clk 0:02:09]} 15. Bd4 {[%clk 0:01:44]}  Nc6 {[%clk 0:01:56]} 16. Rg1 {[%clk 0:01:19]}  Nxd4 {[%clk 0:01:52]} 17. Rxd4 {[%clk 0:01:20]}  f5 {[%clk 0:01:45]} 18. Ng5 {[%clk 0:00:58]}  Bxc5 {[%clk 0:01:43]} 19. Rc4 {[%clk 0:00:59]}  Rc8 {[%clk 0:01:28]} 20. Nxe6 {[%clk 0:00:59]}  b6 {[%clk 0:01:18]} 21. Rxg7 {[%clk 0:00:49]}  Bb4+ {[%clk 0:01:08]} 22. c3 {[%clk 0:00:47]}  Rxc4 {[%clk 0:01:03]} 23. Bxc4 {[%clk 0:00:48]}  Nxc3 {[%clk 0:00:59]} 24. a3 {[%clk 0:00:39]}  Bf8 {[%clk 0:00:39]} 25. Nxf8 {[%clk 0:00:39]}  Kxf8 {[%clk 0:00:33]} 26. Rf7+ {[%clk 0:00:39]}  Ke8 {[%clk 0:00:32]} 27. bxc3 {[%clk 0:00:40]}  b5 {[%clk 0:00:10]} 28. Bd5 {[%clk 0:00:39]} 1-0


[Site "https://www.chess.com"]

[Event "Titled Tuesday Blitz August 15 Early 2023"]
[White "Osiecki, Stanislaw"]
[Black "Arias, Juan Cruz"]
[WhiteFideId "1102990"]
[BlackFideId "118540"]
[WhiteElo "2050"]
[BlackElo "2637"]
[Result "0-1"]
[Round "2"]
[TimeControl "180+1"]
[Date "2023.08.15"]
[WhiteClock "0:01:22"]
[BlackClock "0:02:06"]
[Board "107"]

1. e4 {[%clk 0:03:00]}  c6 {[%clk 0:02:55]} 2. d4 {[%clk 0:03:00]}  d5 {[%clk 0:02:55]} 3. e5 {[%clk 0:03:00]}  Bf5 {[%clk 0:02:54]} 4. Bd3 {[%clk 0:03:00]}  Bxd3 {[%clk 0:02:54]} 5. Qxd3 {[%clk 0:03:00]}  e6 {[%clk 0:02:54]} 6. c3 {[%clk 0:03:01]}  Qb6 {[%clk 0:02:52]} 7. Ne2 {[%clk 0:03:01]}  Qa6 {[%clk 0:02:52]} 8. Qf3 {[%clk 0:03:00]}  c5 {[%clk 0:02:52]} 9. O-O {[%clk 0:03:01]}  Nc6 {[%clk 0:02:51]} 10. a3 {[%clk 0:03:00]}  cxd4 {[%clk 0:02:47]} 11. cxd4 {[%clk 0:03:00]}  Nge7 {[%clk 0:02:48]} 12. Nbc3 {[%clk 0:02:59]}  Nf5 {[%clk 0:02:48]} 13. Nxd5 {[%clk 0:02:59]}  exd5 {[%clk 0:02:45]} 14. Qxf5 {[%clk 0:02:59]}  Qxe2 {[%clk 0:02:46]} 15. Be3 {[%clk 0:02:54]}  Be7 {[%clk 0:02:43]} 16. e6 {[%clk 0:02:50]}  fxe6 {[%clk 0:02:33]} 17. Qxe6 {[%clk 0:02:49]}  Qh5 {[%clk 0:02:33]} 18. Rfe1 {[%clk 0:02:36]}  Qf7 {[%clk 0:02:30]} 19. Qg4 {[%clk 0:02:33]}  O-O {[%clk 0:02:29]} 20. b4 {[%clk 0:02:31]}  a6 {[%clk 0:02:29]} 21. h4 {[%clk 0:02:29]}  Bf6 {[%clk 0:02:28]} 22. g3 {[%clk 0:02:25]}  Rae8 {[%clk 0:02:28]} 23. Rad1 {[%clk 0:02:24]}  Re4 {[%clk 0:02:26]} 24. Qf5 {[%clk 0:02:17]}  g6 {[%clk 0:02:23]} 25. Qf3 {[%clk 0:02:17]}  Qe6 {[%clk 0:02:19]} 26. Qg2 {[%clk 0:02:14]}  Bxd4 {[%clk 0:02:18]} 27. Rd3 {[%clk 0:01:48]}  Bxe3 {[%clk 0:02:18]} 28. Rdxe3 {[%clk 0:01:44]}  Re8 {[%clk 0:02:15]} 29. Rxe4 {[%clk 0:01:42]}  dxe4 {[%clk 0:02:15]} 30. f3 {[%clk 0:01:37]}  e3 {[%clk 0:02:12]} 31. Qb2 {[%clk 0:01:32]}  Qe5 {[%clk 0:02:08]} 32. Qg2 {[%clk 0:01:29]}  Nd4 {[%clk 0:02:07]} 33. f4 {[%clk 0:01:22]}  Qe4 {[%clk 0:02:06]} 0-1


[Site "https://www.chess.com"]

[Event "Titled Tuesday Blitz August 15 Early 2023"]
[White "Da Paz, Leonardo Gadelha"]
[Black "Naroditsky, Daniel"]
[WhiteFideId "2109743"]
[BlackFideId "2026961"]
[WhiteElo "1868"]
[BlackElo "3188"]
[Result "0-1"]
[Round "2"]
[TimeControl "180+1"]
[Date "2023.08.15"]
[WhiteClock "0:00:40"]
[BlackClock "0:01:07"]
[Board "110"]

1. e4 {[%clk 0:03:00]}  Nf6 {[%clk 0:02:58]} 2. Nc3 {[%clk 0:02:59]}  d5 {[%clk 0:02:58]} 3. exd5 {[%clk 0:02:59]}  Nxd5 {[%clk 0:02:59]} 4. Nf3 {[%clk 0:03:00]}  Nxc3 {[%clk 0:02:58]} 5. bxc3 {[%clk 0:02:59]}  g6 {[%clk 0:02:58]} 6. Bc4 {[%clk 0:03:00]}  Bg7 {[%clk 0:02:58]} 7. O-O {[%clk 0:03:00]}  O-O {[%clk 0:02:58]} 8. Ba3 {[%clk 0:02:59]}  Nd7 {[%clk 0:02:38]} 9. Qe2 {[%clk 0:02:55]}  c5 {[%clk 0:02:38]} 10. d4 {[%clk 0:02:52]}  Qa5 {[%clk 0:02:32]} 11. Bb2 {[%clk 0:02:32]}  e6 {[%clk 0:02:32]} 12. Ng5 {[%clk 0:02:29]}  Nb6 {[%clk 0:02:23]} 13. Ne4 {[%clk 0:02:06]}  cxd4 {[%clk 0:02:13]} 14. cxd4 {[%clk 0:02:03]}  Nxc4 {[%clk 0:02:13]} 15. Qxc4 {[%clk 0:02:02]}  Bd7 {[%clk 0:02:14]} 16. Nc5 {[%clk 0:02:01]}  Bb5 {[%clk 0:02:11]} 17. Qb3 {[%clk 0:01:54]}  Bxf1 {[%clk 0:02:10]} 18. Rxf1 {[%clk 0:01:53]}  b6 {[%clk 0:02:10]} 19. Bc3 {[%clk 0:01:44]}  Qxc3 {[%clk 0:02:03]} 20. Qxc3 {[%clk 0:01:44]}  bxc5 {[%clk 0:02:04]} 21. Qxc5 {[%clk 0:01:44]}  Rfc8 {[%clk 0:02:03]} 22. Qa5 {[%clk 0:01:29]}  Bxd4 {[%clk 0:02:01]} 23. h4 {[%clk 0:01:22]}  h5 {[%clk 0:01:54]} 24. g4 {[%clk 0:01:21]}  hxg4 {[%clk 0:01:52]} 25. h5 {[%clk 0:01:20]}  g3 {[%clk 0:01:47]} 26. Kg2 {[%clk 0:01:18]}  gxf2 {[%clk 0:01:42]} 27. hxg6 {[%clk 0:01:18]}  Rc5 {[%clk 0:01:39]} 28. gxf7+ {[%clk 0:01:17]}  Kxf7 {[%clk 0:01:40]} 29. Qd2 {[%clk 0:01:09]}  Rf5 {[%clk 0:01:20]} 30. Qxd4 {[%clk 0:01:07]}  Rg8+ {[%clk 0:01:20]} 31. Kh3 {[%clk 0:01:05]}  Rh5+ {[%clk 0:01:21]} 32. Qh4 {[%clk 0:01:05]}  Rxh4+ {[%clk 0:01:22]} 33. Kxh4 {[%clk 0:01:05]}  e5 {[%clk 0:01:21]} 34. Rxf2+ {[%clk 0:01:05]}  Ke6 {[%clk 0:01:22]} 35. Re2 {[%clk 0:01:00]}  Kf5 {[%clk 0:01:21]} 36. Rf2+ {[%clk 0:01:00]}  Ke4 {[%clk 0:01:20]} 37. Rf7 {[%clk 0:01:00]}  a5 {[%clk 0:01:05]} 38. Ra7 {[%clk 0:00:58]}  Kf3 {[%clk 0:01:05]} 39. Rxa5 {[%clk 0:00:58]}  e4 {[%clk 0:01:06]} 40. Rf5+ {[%clk 0:00:56]}  Ke2 {[%clk 0:01:06]} 41. c4 {[%clk 0:00:55]}  e3 {[%clk 0:01:07]} 42. c5 {[%clk 0:00:55]}  Kd3 {[%clk 0:01:08]} 43. c6 {[%clk 0:00:55]}  e2 {[%clk 0:01:07]} 44. Re5 {[%clk 0:00:53]}  Rc8 {[%clk 0:01:08]} 45. Re6 {[%clk 0:00:52]}  Rxc6 {[%clk 0:01:07]} 46. Rxc6 {[%clk 0:00:51]}  e1=Q+ {[%clk 0:01:08]} 47. Kg4 {[%clk 0:00:40]}  Qe4+ {[%clk 0:01:07]} 0-1


[Site "https://www.chess.com"]